bitfinex-derivatives/quotes_BNBF0:USTF0_20250305
["timestamp","ask_amount","ask_price","bid_price","bid_amount"]
[1741178576755,4.02283863,597.44,596.81,0.33511502]
[1741178576959,4.02283863,597.43,596.81,0.33511502]
[1741178577155,0.29143288,597.5,596.81,0.33511502]
[1741178577156,5.18631104,597.42,596.81,0.33511502]
[1741178577356,4.02112924,597.41,596.81,0.33511502]
[1741178577556,3.71042571,597.4,596.81,0.33511502]
[1741178577756,2.5469533,597.39,596.81,0.33511502]
[1741178578664,2.54608327,597.38,596.81,0.33511502]
[1741178578962,2.54403048,597.37,596.81,0.33511502]
[1741178579265,2.54403048,597.36,596.81,0.33511502]
[1741178579465,2.54397566,597.35,596.81,0.33511502]
[1741178579762,2.72297566,597.34,596.81,0.33511502]
[1741178579963,0.179,597.34,596.81,0.33511502]
[1741178580164,1.16347241,597.33,596.81,0.33511502]
[1741178580464,0.179,597.34,596.81,0.33511502]
[1741178592477,0.03072251,597.34,596.96,1.25058438]
[1741178594379,0.03072251,597.34,596.97,0.33502521]
[1741178594680,0.03072251,597.34,597.05,1.25058438]
[1741178594875,0.03072251,597.34,597.06,0.3349747]
[1741178596880,4.01370193,598.46,597.06,0.3349747]
[1741178597080,5.17704802,598.45,597.06,0.3349747]
[1741178597380,4.01111354,598.44,597.06,0.3349747]
[1741178597582,2.5414624,598.43,597.06,0.3349747]
[1741178597874,4.01112845,598.42,597.06,0.3349747]
[1741178598075,4.01112845,598.41,597.06,0.3349747]
[1741178598280,4.01112845,598.4,597.06,0.3349747]
[1741178598482,4.01112845,598.39,597.06,0.3349747]
[1741178598674,4.01112845,598.38,597.06,0.3349747]
[1741178598874,4.00704591,598.37,597.06,0.3349747]
[1741178599079,4.00704591,598.36,597.06,0.3349747]
[1741178599377,5.00183483,598.35,597.06,0.3349747]
[1741178599579,4.00704591,598.34,597.06,0.3349747]
[1741178599780,4.00704591,598.33,597.06,0.3349747]
[1741178599981,4.00704591,598.32,597.06,0.3349747]
[1741178600182,1.16334609,598.34,597.06,0.3349747]
[1741178600183,4.00704591,598.31,597.06,0.3349747]
[1741178600379,4.00704591,598.3,597.06,0.3349747]
[1741178600576,4.00704591,598.29,597.06,0.3349747]
[1741178600777,4.00704591,598.28,597.06,0.3349747]
[1741178601083,4.00704591,598.27,597.06,0.3349747]
[1741178601276,1.16334609,598.28,597.06,0.3349747]
[1741178601277,2.53531862,598.26,597.06,0.3349747]
[1741178601581,2.53531862,598.25,597.06,0.3349747]
[1741178601881,0.29111838,598.35,597.06,0.3349747]
[1741178602082,1.61539154,598.34,597.06,0.3349747]
[1741178602279,0.29111838,598.35,597.06,0.3349747]
[1741178602881,0.9168328,598.34,597.06,0.3349747]
[1741178603084,0.9168328,598.33,597.06,0.3349747]
[1741178603284,0.9168328,598.32,597.06,0.3349747]
[1741178603485,0.9168328,598.31,597.06,0.3349747]
[1741178603687,0.9168328,598.3,597.06,0.3349747]
[1741178603880,0.9168328,598.29,597.06,0.3349747]
[1741178604081,3.99915683,598.28,597.06,0.3349747]
[1741178604385,3.99915683,598.27,597.06,0.3349747]
[1741178604586,3.99915683,598.26,597.06,0.3349747]
[1741178604887,3.99915683,598.25,597.06,0.3349747]
[1741178605188,3.99679058,598.24,597.06,0.3349747]
[1741178605487,2.14512108,598.25,597.06,0.3349747]
[1741178605488,3.99679058,598.23,597.06,0.3349747]
[1741178605686,3.99679058,598.22,597.06,0.3349747]
[1741178605881,2.53067125,598.21,597.06,0.3349747]
[1741178606082,0.91632458,598.2,597.06,0.3349747]
[1741178606288,0.91632458,598.19,597.06,0.3349747]
[1741178606486,2.07461146,598.18,597.06,0.3349747]
[1741178606685,0.91632458,598.17,597.06,0.3349747]
[1741178606887,0.91632458,598.16,597.06,0.3349747]
[1741178607187,0.91632458,598.15,597.06,0.3349747]
[1741178607390,0.91632458,598.14,597.06,0.3349747]
[1741178607587,0.91632458,598.13,597.06,0.3349747]
[1741178607789,0.91632458,598.15,597.06,0.3349747]
[1741178607991,0.91632458,598.14,597.06,0.3349747]
[1741178608391,0.91632458,598.13,597.06,0.3349747]
[1741178608588,3.99679058,598.13,597.06,0.3349747]
[1741178608892,3.99679058,598.12,597.06,0.3349747]
[1741178609090,5.15507746,598.11,597.06,0.3349747]
[1741178609285,3.99474257,598.1,597.06,0.3349747]
[1741178609483,0.91632458,598.09,597.06,0.3349747]
[1741178609690,0.91632458,598.1,597.06,0.3349747]
[1741178609891,0.91632458,598.09,597.06,0.3349747]
[1741178610391,0.29125726,598.1,597.06,0.3349747]
[1741178610985,0.91632458,598.09,597.06,0.3349747]
[1741178611186,0.29125726,598.1,597.06,0.3349747]
[1741178611586,2.52864567,598.23,597.06,0.3349747]
[1741178611787,0.91632458,598.22,597.06,0.3349747]
[1741178612093,0.91632458,598.21,597.06,0.3349747]
[1741178612293,0.91632458,598.2,597.06,0.3349747]
[1741178612493,0.91632458,598.19,597.06,0.3349747]
[1741178612693,0.91632458,598.18,597.06,0.3349747]
[1741178612894,0.91632458,598.17,597.06,0.3349747]
[1741178613094,0.91632458,598.16,597.06,0.3349747]
[1741178613296,0.91632458,598.18,597.06,0.3349747]
[1741178613694,1.15670719,598.19,597.06,0.3349747]
[1741178613896,3.99074519,598.42,597.06,0.3349747]
[1741178614197,3.99074519,598.41,597.06,0.3349747]
[1741178614499,3.99074519,598.4,597.06,0.3349747]
[1741178614700,3.99074519,598.39,597.06,0.3349747]
[1741178614897,3.99074519,598.38,597.06,0.3349747]
[1741178615093,3.99074519,598.37,597.06,0.3349747]
[1741178615290,3.99074519,598.36,597.06,0.3349747]
[1741178615597,5.14745238,598.35,597.06,0.3349747]
[1741178615791,3.99074519,598.34,597.06,0.3349747]
[1741178615992,5.14745238,598.33,597.06,0.3349747]
[1741178616298,5.14745238,598.32,597.06,0.3349747]
[1741178616500,3.98933627,598.31,597.06,0.3349747]
[1741178616697,3.98933627,598.3,597.06,0.3349747]
[1741178616898,3.98933627,598.29,597.06,0.3349747]
[1741178617092,3.98933627,598.28,597.06,0.3349747]
[1741178617293,0.91490065,598.27,597.06,0.3349747]
[1741178617496,0.91490065,598.26,597.06,0.3349747]
[1741178617692,0.91490065,598.25,597.06,0.3349747]
[1741178617897,0.91490065,598.26,597.06,0.3349747]
[1741178618097,3.98771674,598.37,597.06,0.3349747]
[1741178618291,2.37731543,598.36,597.06,0.3349747]
[1741178618492,2.52518631,598.35,597.06,0.3349747]
[1741178618798,3.6818935,598.34,597.06,0.3349747]
[1741178618990,2.37731543,598.33,597.06,0.3349747]
[1741178619195,0.91490065,598.32,597.06,0.3349747]
[1741178619591,1.15670719,598.33,597.06,0.3349747]
[1741178619798,2.37709304,598.39,597.06,0.3349747]
[1741178619998,2.52513967,598.38,597.06,0.3349747]
[1741178620295,2.52480924,598.37,597.06,0.3349747]
[1741178620498,2.52480924,598.36,597.06,0.3349747]
[1741178620699,2.52480924,598.35,597.06,0.3349747]
[1741178620897,2.52480924,598.34,597.06,0.3349747]
[1741178621100,2.52480924,598.33,597.06,0.3349747]
[1741178621302,2.61889958,598.35,597.06,0.3349747]
[1741178621303,3.98700163,598.32,597.06,0.3349747]
[1741178621501,5.14370882,598.31,597.06,0.3349747]
[1741178621795,3.98700163,598.3,597.06,0.3349747]
[1741178622000,3.98700163,598.29,597.06,0.3349747]
[1741178622195,3.98700163,598.28,597.06,0.3349747]
[1741178622399,3.98700163,598.27,597.06,0.3349747]
[1741178622695,3.98700163,598.26,597.06,0.3349747]
[1741178622898,3.98700163,598.25,597.06,0.3349747]
[1741178623201,2.07160784,598.24,597.06,0.3349747]
[1741178623402,1.15670719,598.24,597.06,0.3349747]
[1741178623597,0.91490065,598.23,597.06,0.3349747]
[1741178623901,0.91490065,598.22,597.06,0.3349747]
[1741178624098,3.985712,598.32,597.06,0.3349747]
[1741178624303,3.985712,598.31,597.06,0.3349747]
[1741178624504,3.985712,598.3,597.06,0.3349747]
[1741178624698,3.985712,598.29,597.06,0.3349747]
[1741178624904,3.985712,598.28,597.06,0.3349747]
[1741178625099,3.985712,598.27,597.06,0.3349747]
[1741178625295,3.985712,598.26,597.06,0.3349747]
[1741178625505,3.985712,598.25,597.06,0.3349747]
[1741178625703,3.985712,598.24,597.06,0.3349747]
[1741178625912,3.98539338,598.23,597.06,0.3349747]
[1741178626206,3.98539338,598.22,597.06,0.3349747]
[1741178626403,3.98539338,598.21,597.06,0.3349747]
[1741178626604,5.14210057,598.2,597.06,0.3349747]
[1741178626807,3.98539338,598.19,597.06,0.3349747]
[1741178627005,3.98539338,598.18,597.06,0.3349747]
[1741178627204,3.98539338,598.17,597.06,0.3349747]
[1741178627405,3.98539338,598.16,597.06,0.3349747]
[1741178627604,3.98539338,598.15,597.06,0.3349747]
[1741178627806,3.98539338,598.14,597.06,0.3349747]
[1741178628006,3.98539338,598.13,597.06,0.3349747]
[1741178628207,3.98539338,598.12,597.06,0.3349747]
[1741178628404,3.98539338,598.11,597.06,0.3349747]
[1741178628708,3.98539338,598.1,597.06,0.3349747]
[1741178629007,3.98539338,598.09,597.06,0.3349747]
[1741178629209,3.98539338,598.08,597.06,0.3349747]
[1741178629511,5.14210057,598.07,597.06,0.3349747]
[1741178629809,5.14210057,598.06,597.06,0.3349747]
[1741178630107,3.98539338,598.05,597.06,0.3349747]
[1741178630307,3.98539338,598.04,597.06,0.3349747]
[1741178630508,3.98539338,598.03,597.06,0.3349747]
[1741178630711,5.14210057,598.02,597.06,0.3349747]
[1741178630902,3.98539338,598.01,597.06,0.3349747]
[1741178631208,3.68064612,598.0,597.06,0.3349747]
[1741178631409,2.3763551,597.99,597.06,0.3349747]
[1741178631604,2.52393893,597.98,597.06,0.3349747]
[1741178631910,2.52565386,597.97,597.06,0.3349747]
[1741178632209,2.52565386,597.96,597.06,0.3349747]
[1741178632405,3.98710831,597.95,597.06,0.3349747]
[1741178632710,5.1438155,597.94,597.06,0.3349747]
[1741178632909,3.98710831,597.93,597.06,0.3349747]
[1741178633211,3.98710831,597.92,597.06,0.3349747]
[1741178633410,3.98710831,597.91,597.06,0.3349747]
[1741178633610,3.98710831,597.9,597.06,0.3349747]
[1741178633812,3.98710831,597.89,597.06,0.3349747]
[1741178634009,3.98710831,597.88,597.06,0.3349747]
[1741178634314,3.98710831,597.87,597.06,0.3349747]
[1741178634613,3.98710831,597.86,597.06,0.3349747]
[1741178634812,3.98710831,597.85,597.06,0.3349747]
[1741178635112,3.98710831,597.84,597.06,0.3349747]
[1741178635311,3.98939959,597.83,597.06,0.3349747]
[1741178635511,2.52795664,597.82,597.06,0.3349747]
[1741178635812,2.07160784,597.81,597.06,0.3349747]
[1741178636113,0.91490065,597.8,597.06,0.3349747]
[1741178636410,0.91490065,597.79,597.06,0.3349747]
[1741178636610,0.91490065,597.78,597.06,0.3349747]
[1741178636811,3.077877,598.05,597.06,0.3349747]
[1741178636812,1.20623472,597.8,597.06,0.3349747]
[1741178637010,0.91490065,597.79,597.06,0.3349747]
[1741178637208,0.91490065,597.78,597.06,0.3349747]
[1741178637409,0.91490065,597.77,597.06,0.3349747]
[1741178637609,0.91490065,597.76,597.06,0.3349747]
[1741178637806,0.91490065,597.75,597.06,0.3349747]
[1741178638012,0.91490065,597.74,597.06,0.3349747]
[1741178638204,2.07160784,597.78,597.06,0.3349747]
[1741178638412,0.91490065,597.77,597.06,0.3349747]
[1741178638608,0.91490065,597.76,597.06,0.3349747]
[1741178638811,0.91490065,597.75,597.06,0.3349747]
[1741178639008,0.91490065,597.77,597.06,0.3349747]
[1741178639209,1.15670719,597.78,597.06,0.3349747]
[1741178639210,0.91490065,597.76,597.06,0.3349747]
[1741178639415,0.91490065,597.78,597.06,0.3349747]
[1741178639814,1.15670719,597.79,597.06,0.3349747]
[1741178640614,2.07379229,597.79,597.06,0.3349747]
[1741178641017,0.9170851,597.78,597.06,0.3349747]
[1741178641215,0.9170851,597.77,597.06,0.3349747]
[1741178641409,0.9170851,597.76,597.06,0.3349747]
[1741178641613,0.9170851,597.75,597.06,0.3349747]
[1741178641810,0.9170851,597.74,597.06,0.3349747]
[1741178642017,0.9170851,597.73,597.06,0.3349747]
[1741178642215,0.9170851,597.72,597.06,0.3349747]
[1741178642412,0.9170851,597.71,597.06,0.3349747]
[1741178642612,0.9170851,597.7,597.06,0.3349747]
[1741178642812,0.9170851,597.69,597.06,0.3349747]
[1741178643015,0.9170851,597.71,597.06,0.3349747]
[1741178643212,0.9170851,597.7,597.06,0.3349747]
[1741178643417,0.9170851,597.69,597.06,0.3349747]
[1741178643719,2.07379229,597.7,597.06,0.3349747]
[1741178643919,0.9170851,597.69,597.06,0.3349747]
[1741178644418,0.9170851,597.68,597.06,0.3349747]
[1741178644622,0.9170851,597.67,597.06,0.3349747]
[1741178644920,0.9170851,597.66,597.06,0.3349747]
[1741178645120,0.9170851,597.65,597.06,0.3349747]
[1741178645323,0.9170851,597.66,597.06,0.3349747]
[1741178645517,0.9170851,597.65,597.06,0.3349747]
[1741178645717,0.9170851,597.66,597.06,0.3349747]
[1741178646119,0.91838462,597.66,597.06,0.3349747]
[1741178646516,2.38780001,597.65,597.06,0.3349747]
[1741178646718,0.91838462,597.64,597.06,0.3349747]
[1741178646919,2.53642164,597.63,597.06,0.3349747]
[1741178647115,2.53642164,597.62,597.06,0.3349747]
[1741178647319,0.29130968,597.67,597.06,0.3349747]
[1741178647320,2.53642164,597.61,597.06,0.3349747]
[1741178647517,0.29130968,597.67,597.06,0.3349747]
[1741178647518,2.53642164,597.6,597.06,0.3349747]
[1741178647720,0.91838462,597.59,597.06,0.3349747]
[1741178647916,0.91838462,597.58,597.06,0.3349747]
[1741178648121,0.91869865,597.57,597.06,0.3349747]
[1741178648424,0.91869865,597.56,597.06,0.3349747]
[1741178648624,1.61827935,597.65,597.06,0.3349747]
[1741178648823,3.6980045,597.64,597.06,0.3349747]
[1741178649023,2.53689625,597.63,597.06,0.3349747]
[1741178649223,2.53689625,597.62,597.06,0.3349747]
[1741178649424,2.53689625,597.61,597.06,0.3349747]
[1741178649622,2.53689625,597.6,597.06,0.3349747]
[1741178649818,0.9186169,597.59,597.06,0.3349747]
[1741178650124,0.9186169,597.58,597.06,0.3349747]
[1741178650424,1.16110825,597.58,597.06,0.3349747]
[1741178650623,4.99625369,597.96,597.06,0.3349747]
[1741178650824,4.00675936,597.95,597.06,0.3349747]
[1741178651020,4.00675936,597.94,597.06,0.3349747]
[1741178651223,4.00675936,597.93,597.06,0.3349747]
[1741178651424,4.00675936,597.92,597.06,0.3349747]
[1741178651724,4.00675936,597.91,597.06,0.3349747]
[1741178651925,4.00675936,597.9,597.06,0.3349747]
[1741178652118,4.00675936,597.89,597.06,0.3349747]
[1741178652322,4.00675936,597.88,597.06,0.3349747]
[1741178652625,5.16787541,597.87,597.06,0.3349747]
[1741178652823,4.00675936,597.86,597.06,0.3349747]
[1741178653024,5.16787541,597.85,597.06,0.3349747]
[1741178653230,4.00675936,597.84,597.06,0.3349747]
[1741178653420,1.16111605,597.85,597.06,0.3349747]
[1741178653421,4.00675936,597.83,597.06,0.3349747]
[1741178653728,4.00615424,597.82,597.06,0.3349747]
[1741178653920,4.00615424,597.81,597.06,0.3349747]
[1741178654119,4.00615424,597.8,597.06,0.3349747]
[1741178654322,4.00615424,597.79,597.06,0.3349747]
[1741178654522,4.00615424,597.78,597.06,0.3349747]
[1741178654726,5.16727029,597.77,597.06,0.3349747]
[1741178655022,4.00615424,597.76,597.06,0.3349747]
[1741178655219,4.00615424,597.75,597.06,0.3349747]
[1741178655424,4.00615424,597.74,597.06,0.3349747]
[1741178655621,5.16727029,597.73,597.06,0.3349747]
[1741178655824,4.00615424,597.72,597.06,0.3349747]
[1741178656024,4.00615424,597.71,597.06,0.3349747]
[1741178656221,5.16727029,597.7,597.06,0.3349747]
[1741178656425,4.00615424,597.69,597.06,0.3349747]
[1741178656627,4.00615424,597.68,595.68,1.25058438]
[1741178656827,4.00615424,597.67,595.7,0.33573946]
[1741178657129,5.16727029,597.66,595.7,0.33573946]
[1741178657422,4.00615424,597.65,595.7,0.33573946]
[1741178657621,4.00615424,597.64,595.7,0.33573946]
[1741178657824,4.00615424,597.63,595.71,0.2914817]
[1741178658027,4.00615424,597.62,595.73,0.33572255]
[1741178658226,4.00615424,597.61,595.73,0.33572255]
[1741178658530,4.00615424,597.6,595.89,1.25058438]
[1741178658727,4.00615424,597.59,595.91,0.33562115]
[1741178658927,4.00615424,597.58,595.91,0.33562115]
[1741178659128,4.00615424,597.57,595.91,0.33562115]
[1741178659322,4.00615424,597.56,595.91,0.33562115]
[1741178659525,4.00615424,597.55,595.91,0.33562115]
[1741178659727,4.00530755,597.54,595.91,0.33562115]
[1741178659926,4.00527773,597.53,595.91,0.33562115]
[1741178660127,5.16639378,597.52,595.91,0.33562115]
[1741178660324,2.53633456,597.51,595.91,0.33562115]
[1741178660525,2.53633456,597.5,595.91,0.33562115]
[1741178660832,2.53633456,597.49,595.91,0.33562115]
[1741178661025,2.53633456,597.48,595.91,0.33562115]
[1741178661227,2.53633456,597.47,596.17,1.25058438]
[1741178661426,4.00466952,597.46,596.19,0.33546352]
[1741178661732,5.16578557,597.45,596.19,0.33546352]
[1741178661926,4.00466952,597.44,596.19,0.33546352]
[1741178662129,0.98949433,597.4,596.19,0.33546352]
[1741178662324,4.00466952,597.43,596.19,0.33546352]
[1741178662325,4.99416385,597.39,596.19,0.33546352]
[1741178662528,4.99416385,597.38,596.19,0.33546352]
[1741178662725,4.99416385,597.37,596.19,0.33546352]
[1741178662929,4.00466952,597.36,596.19,0.33546352]
[1741178663131,4.00466952,597.35,596.19,0.33546352]
[1741178663331,4.00466952,597.34,596.19,0.33546352]
[1741178663629,4.00466952,597.33,596.19,0.33546352]
[1741178663931,4.00466952,597.32,596.19,0.33546352]
[1741178664136,1.16111605,597.33,596.19,0.33546352]
[1741178664137,4.00466952,597.31,596.19,0.33546352]
[1741178664324,4.00466952,597.3,596.19,0.33546352]
[1741178664526,1.16111605,597.31,596.19,0.33546352]
[1741178664527,4.00466952,597.29,596.19,0.33546352]
[1741178664831,4.00466952,597.28,596.19,0.33546352]
[1741178665024,2.38697226,597.27,596.19,0.33546352]
[1741178665229,3.99898829,597.26,596.19,0.33546352]
[1741178665431,3.99898829,597.25,596.19,0.33546352]
[1741178665626,3.99898829,597.24,596.19,0.33546352]
[1741178665831,2.53065333,597.23,596.19,0.33546352]
[1741178666128,3.69176938,597.22,596.19,0.33546352]
[1741178666332,3.99898829,597.21,596.19,0.33546352]
[1741178666528,3.99898829,597.2,596.19,0.33546352]
[1741178666827,2.53065333,597.19,596.19,0.33546352]
[1741178667035,2.53065333,597.18,596.19,0.33546352]
[1741178667230,2.53065333,597.17,596.19,0.33546352]
[1741178667433,2.07975335,597.16,596.19,0.33546352]
[1741178667738,0.9186373,597.15,596.19,0.33546352]
[1741178667934,0.9186373,597.14,596.19,0.33546352]
[1741178668240,1.16111605,597.16,596.19,0.33546352]
[1741178668241,0.9186373,597.15,596.19,0.33546352]
[1741178668441,0.9186373,597.14,596.19,0.33546352]
[1741178668641,0.9186373,597.13,596.19,0.33546352]
[1741178668838,3.98894846,597.32,596.19,0.33546352]
[1741178669032,3.98894846,597.31,596.19,0.33546352]
[1741178669239,5.15006451,597.3,596.19,0.33546352]
[1741178669533,3.98894846,597.29,596.19,0.33546352]
[1741178669735,5.15006451,597.28,596.19,0.33546352]
[1741178669940,3.98894846,597.27,596.19,0.33546352]
[1741178670142,5.15006451,597.26,596.19,0.33546352]
[1741178670338,3.98894846,597.25,596.19,0.33546352]
[1741178670540,3.98894846,597.24,596.19,0.33546352]
[1741178670734,3.98894846,597.23,596.19,0.33546352]
[1741178670941,3.98894846,597.22,596.19,0.33546352]
[1741178671142,0.9186373,597.21,596.19,0.33546352]
[1741178671334,1.16111605,597.21,596.19,0.33546352]
[1741178671937,0.9186373,597.34,596.19,0.33546352]
[1741178672138,0.9186373,597.33,596.19,0.33546352]
[1741178672341,0.9186373,597.34,596.19,0.33546352]
[1741178672642,0.9186373,597.33,596.19,0.33546352]
[1741178672941,0.29154153,597.33,596.19,0.33546352]
[1741178673141,1.21017883,597.33,596.19,0.33546352]
[1741178673340,0.29154153,597.33,596.19,0.33546352]
[1741178673936,0.9186373,597.32,596.19,0.33546352]
[1741178674136,0.9186373,597.31,596.19,0.33546352]
[1741178674335,0.9186373,597.3,596.19,0.33546352]
[1741178674534,0.9186373,597.32,596.19,0.33546352]
[1741178674743,0.9186373,597.31,596.19,0.33546352]
[1741178675037,0.9186373,597.3,596.19,0.33546352]
[1741178675241,0.9186373,597.32,596.19,0.33546352]
[1741178675442,0.9186373,597.31,596.19,0.33546352]
[1741178675635,0.9186373,597.3,596.19,0.33546352]
[1741178675836,0.9186373,597.29,596.19,0.33546352]
[1741178676039,0.9186373,597.32,596.19,0.33546352]
[1741178676236,0.9186373,597.31,596.19,0.33546352]
[1741178676540,0.9186373,597.3,596.19,0.33546352]
[1741178676743,0.9186373,597.29,596.19,0.33546352]
[1741178676942,0.29154153,597.33,596.19,0.33546352]
[1741178676943,0.9186373,597.32,596.19,0.33546352]
[1741178677440,1.21017883,597.33,596.19,0.33546352]
[1741178677738,0.9186373,597.32,596.19,0.33546352]
[1741178677938,0.9186373,597.31,596.19,0.33546352]
[1741178678143,0.9186373,597.32,596.19,0.33546352]
[1741178678337,0.9186373,597.31,596.19,0.33546352]
[1741178678543,0.9186373,597.3,596.19,0.33546352]
[1741178678743,0.9186373,597.29,596.19,0.33546352]
[1741178679042,0.9186373,597.32,596.19,0.33546352]
[1741178679242,2.52550608,597.52,596.19,0.33546352]
[1741178679537,0.29151344,597.47,596.19,0.33546352]
[1741178680541,0.9186373,597.48,596.19,0.33546352]
[1741178680739,0.2914817,597.53,596.19,0.33546352]
[1741178681038,3.6895694,597.52,596.19,0.33546352]
[1741178681243,3.99037738,597.51,596.19,0.33546352]
[1741178681440,3.99037738,597.5,596.19,0.33546352]
[1741178681744,3.99037738,597.49,596.19,0.33546352]
[1741178682040,3.99037738,597.48,596.19,0.33546352]
[1741178682242,3.99037738,597.47,596.19,0.33546352]
[1741178682439,3.99037738,597.46,596.19,0.33546352]
[1741178682643,2.52845335,597.45,596.19,0.33546352]
[1741178682839,2.52845335,597.44,596.19,0.33546352]
[1741178683040,2.07975335,597.43,596.19,0.33546352]
[1741178683241,2.07975335,597.42,596.19,0.33546352]
[1741178683442,0.9186373,597.41,596.19,0.33546352]
[1741178683647,2.07975335,597.4,596.19,0.33546352]
[1741178683844,0.9186373,597.39,596.19,0.33546352]
[1741178684042,0.9186373,597.38,596.19,0.33546352]
[1741178684245,2.07975335,597.37,596.19,0.33546352]
[1741178684447,0.9186373,597.36,596.19,0.33546352]
[1741178684645,2.07975335,597.35,596.19,0.33546352]
[1741178684845,0.9186373,597.34,596.19,0.33546352]
[1741178685047,0.9186373,597.33,596.19,0.33546352]
[1741178685348,2.07975335,597.32,596.19,0.33546352]
[1741178685642,2.07975335,597.31,596.19,0.33546352]
[1741178685843,0.9186373,597.3,596.19,0.33546352]
[1741178686047,2.07975335,597.3,596.19,0.33546352]
[1741178686249,1.16111605,597.3,596.19,0.33546352]
[1741178686544,2.07734649,597.29,596.19,0.33546352]
[1741178686848,1.16111605,597.29,596.19,0.33546352]
[1741178687243,2.07731115,597.28,596.19,0.33546352]
[1741178687446,1.16111605,597.28,596.19,0.33546352]
[1741178687748,1.16111605,597.27,596.19,0.33546352]
[1741178688149,0.9164457,597.3,596.19,0.33546352]
[1741178688348,0.9164457,597.29,596.19,0.33546352]
[1741178688648,1.15877789,597.29,596.19,0.33546352]
[1741178688845,2.53098006,597.35,596.19,0.33546352]
[1741178689149,2.53098006,597.34,596.19,0.33546352]
[1741178689445,3.69038944,597.33,596.19,0.33546352]
[1741178689648,0.91675588,597.32,596.19,0.33546352]
[1741178689846,0.91675588,597.31,596.19,0.33546352]
[1741178690050,0.91675588,597.3,596.19,0.33546352]
[1741178690351,2.07616526,597.29,596.19,0.33546352]
[1741178690647,1.15940938,597.29,596.19,0.33546352]
[1741178690846,0.98716605,597.59,596.19,0.33546352]
[1741178691046,0.2923559,597.38,596.19,0.33546352]
[1741178691251,2.53314432,597.37,596.19,0.33546352]
[1741178691450,0.98716605,597.61,596.19,0.33546352]
[1741178691451,3.69304045,597.36,596.19,0.33546352]
[1741178691747,2.53382358,597.35,596.19,0.33546352]
[1741178691950,2.53382358,597.34,596.19,0.33546352]
[1741178692148,0.9174521,597.33,596.19,0.33546352]
[1741178692345,0.9174521,597.32,596.19,0.33546352]
[1741178692651,0.9174521,597.31,596.19,0.33546352]
[1741178692851,0.9174521,597.3,596.19,0.33546352]
[1741178693151,2.07771884,597.3,596.19,0.33546352]
[1741178693347,0.91801032,597.29,596.19,0.33546352]
[1741178693748,1.6165557,597.35,596.19,0.33546352]
[1741178694051,0.91796361,597.34,596.19,0.33546352]
[1741178694250,0.91796361,597.33,596.19,0.33546352]
[1741178694446,2.07785974,597.32,596.19,0.33546352]
[1741178694647,2.53451931,597.31,596.19,0.33546352]
[1741178694847,3.69441544,597.3,596.19,0.33546352]
[1741178695053,2.53451931,597.29,596.19,0.33546352]
[1741178695249,2.53451931,597.28,596.19,0.33546352]
[1741178695452,2.53451931,597.27,596.19,0.33546352]
[1741178695648,0.91796361,597.26,596.19,0.33546352]
[1741178695849,2.07785974,597.25,596.19,0.33546352]
[1741178696052,0.91796361,597.24,596.19,0.33546352]
[1741178696255,2.07785974,597.23,596.19,0.33546352]
[1741178696450,0.91846641,597.22,596.19,0.33546352]
[1741178696651,1.61726056,597.28,596.19,0.33546352]
[1741178696856,0.91847212,597.27,596.19,0.33546352]
[1741178697051,0.91847212,597.26,596.19,0.33546352]
[1741178697351,2.07940714,597.25,596.19,0.33546352]
[1741178697553,0.91847212,597.24,596.19,0.33546352]
[1741178697851,0.91847212,597.23,596.19,0.33546352]
[1741178698057,1.16093502,597.24,596.19,0.33546352]
[1741178698260,0.29153786,597.3,596.19,0.33546352]
[1741178698658,1.49761486,598.46,596.19,0.33546352]
[1741178698960,0.29139261,597.3,596.19,0.33546352]
[1741178699359,0.98959853,597.54,596.19,0.33546352]
[1741178699556,2.38859166,597.53,596.19,0.33546352]
[1741178699856,4.00674646,597.52,596.19,0.33546352]
[1741178700154,4.00674646,597.51,596.19,0.33546352]
[1741178700357,4.00674646,597.5,596.19,0.33546352]
[1741178700554,4.00674646,597.49,596.19,0.33546352]
[1741178700758,4.00803792,597.48,596.19,0.33546352]
[1741178700955,4.29954648,597.48,596.2,1.49761486]
[1741178701159,4.29954648,597.48,596.35,1.24801238]
[1741178701160,2.680864,597.48,596.35,1.24801238]
[1741178701355,0.91898286,597.47,596.36,0.33536789]
[1741178701658,2.53763412,597.47,596.36,0.33536789]
[1741178701859,2.53763412,597.46,596.36,0.33536789]
[1741178702059,4.00831999,597.45,596.36,0.33536789]
[1741178702254,4.00831999,597.44,596.36,0.33536789]
[1741178702457,4.00831999,597.43,596.36,0.33536789]
[1741178702654,4.00831999,597.42,596.36,0.33536789]
[1741178702853,4.00831999,597.41,596.36,0.33536789]
[1741178703058,2.53784059,597.4,596.36,0.33536789]
[1741178703259,3.69907236,597.39,596.41,1.24801238]
[1741178703464,3.69907236,597.38,596.42,0.33533416]
[1741178703762,2.53784059,597.37,596.42,0.33533416]
[1741178703961,0.91904962,597.37,596.42,0.33533416]
[1741178704163,0.91904962,597.42,596.42,0.33533416]
[1741178704363,0.91904962,597.41,596.42,0.33533416]
[1741178704657,3.70057747,597.4,596.42,0.33533416]
[1741178704961,4.00943782,597.39,596.42,0.33533416]
[1741178705161,4.00943782,597.38,596.42,0.33533416]
[1741178705463,4.00943782,597.37,596.42,0.33533416]
[1741178705659,4.00943782,597.36,596.42,0.33533416]
[1741178705855,4.00943782,597.35,596.42,0.33533416]